bitfinex/quotes_BTCUSD_20250901
["timestamp","ask_amount","ask_price","bid_price","bid_amount"]
[1756720197061,0.19142785,109850.0,109840.0,0.18823694]
[1756720197278,0.6318434,109850.0,109840.0,0.18823694]
[1756720198139,0.34522785,109850.0,109840.0,0.18823694]
[1756720198388,0.6318434,109850.0,109840.0,0.18823694]
[1756720200896,0.34522785,109850.0,109840.0,0.18823694]
[1756720201106,0.6338034,109850.0,109840.0,0.00087392]
[1756720202395,0.6338034,109850.0,109840.0,0.18295694]
[1756720203018,0.6338034,109850.0,109840.0,0.18823694]
[1756720203226,0.6318434,109850.0,109840.0,0.18823694]
[1756720203671,0.44977695,109850.0,109840.0,0.18823694]
[1756720204096,0.6318434,109850.0,109840.0,0.18823694]
[1756720204525,0.6318034,109850.0,109840.0,0.18823694]
[1756720204735,0.4780434,109850.0,109840.0,0.18823694]
[1756720205099,0.29597695,109850.0,109840.0,0.18823694]
[1756720205316,0.6318034,109850.0,109840.0,0.18823694]
[1756720206843,0.29597695,109850.0,109840.0,0.18823694]
[1756720207046,0.29597695,109850.0,109840.0,0.28121695]
[1756720207047,0.44973695,109850.0,109840.0,0.28121695]
[1756720207396,0.1631214,109850.0,109840.0,0.28121695]
[1756720207613,0.06996,109860.0,109850.0,0.18206645]
[1756720207832,0.22372,109860.0,109850.0,0.27937229]
[1756720208044,0.51033555,109860.0,109850.0,0.28032646]
[1756720208705,0.23302268,109860.0,109850.0,0.28032646]
[1756720208917,0.51963823,109860.0,109850.0,0.28132646]
[1756720209125,0.16306268,109860.0,109850.0,0.28132646]
[1756720209756,0.16306268,109860.0,109850.0,0.30868046]
[1756720209979,0.15376,109860.0,109850.0,0.30868046]
[1756720210193,0.07,109880.0,109870.0,0.18203331]
[1756720210407,0.70175343,109880.0,109870.0,0.18203331]
[1756720210614,0.70175343,109880.0,109870.0,0.18731331]
[1756720211034,0.70371343,109880.0,109870.0,0.18731331]
[1756720211667,0.70175343,109880.0,109870.0,0.18731331]
[1756720211872,0.70371343,109880.0,109870.0,0.18831331]
[1756720212083,0.70371343,109880.0,109870.0,0.18931331]
[1756720213043,0.36597669,109880.0,109870.0,0.28229332]
[1756720213196,0.51973669,109880.0,109870.0,0.28229332]
[1756720213603,0.23312114,109880.0,109870.0,0.28229332]
[1756720213799,0.51973669,109880.0,109870.0,0.28229332]
[1756720217340,0.70175343,109880.0,109870.0,0.28229332]
[1756720217766,0.51973669,109880.0,109870.0,0.28229332]
[1756720219429,0.23312114,109880.0,109870.0,0.28229332]
[1756720219637,0.51973669,109880.0,109870.0,0.28229332]
[1756720219881,0.23312114,109880.0,109870.0,0.28229332]
[1756720220107,0.51973669,109880.0,109870.0,0.28229332]
[1756720221097,0.70371343,109880.0,109870.0,0.28229332]
[1756720224705,0.23312114,109880.0,109870.0,0.28229332]
[1756720224929,0.51973669,109880.0,109870.0,0.28229332]
[1756720225142,0.41711788,109880.0,109870.0,0.28229332]
[1756720225356,0.70373343,109880.0,109870.0,0.28229332]
[1756720226611,0.63373343,109880.0,109870.0,0.27701332]
[1756720226808,0.63373343,109880.0,109870.0,0.28213332]
[1756720227508,0.63373343,109880.0,109870.0,0.27701332]
[1756720227937,0.63373343,109880.0,109870.0,0.27999332]
[1756720228455,0.63373343,109880.0,109870.0,0.28213332]
[1756720229576,0.63373343,109880.0,109870.0,0.27701332]
[1756720229796,0.97644343,109880.0,109870.0,0.002]
[1756720230229,0.68982788,109880.0,109870.0,0.002]
[1756720230647,0.97644343,109880.0,109870.0,0.002]
[1756720231340,0.97644343,109880.0,109870.0,0.001]
[1756720231552,0.182046,109870.0,109860.0,0.18204988]
[1756720231762,0.47065155,109870.0,109860.0,0.18204988]
[1756720231974,0.47065155,109870.0,109860.0,0.28014989]
[1756720232477,0.184036,109870.0,109860.0,0.28014989]
[1756720232685,0.47065155,109870.0,109860.0,0.28014989]
[1756720233055,0.47065155,109870.0,109860.0,0.28214989]
[1756720233489,0.47065155,109870.0,109860.0,0.10010001]
[1756720233637,0.47065155,109870.0,109860.0,0.28214989]
[1756720234968,0.47063886,109870.0,109860.0,0.28214989]
[1756720236661,0.18203331,109870.0,109860.0,0.28214989]
[1756720236874,0.47062886,109870.0,109860.0,0.28214989]
[1756720238321,0.2798856,109870.0,109860.0,0.28214989]
[1756720238523,0.46191891,109870.0,109860.0,0.28214989]
[1756720239514,0.47062886,109870.0,109860.0,0.28214989]
[1756720239739,0.47062886,109870.0,109860.0,0.09498001]
[1756720239964,1.09995441,109870.0,109860.0,0.002]
[1756720240398,0.88329886,109870.0,109860.0,0.002]
[1756720241496,0.88058886,109870.0,109860.0,0.002]
[1756720241714,1.04130886,109870.0,109860.0,0.002]
[1756720242346,0.75469331,109870.0,109860.0,0.002]
[1756720242540,1.04130886,109870.0,109860.0,0.002]
[1756720244337,1.04401886,109870.0,109860.0,0.002]
[1756720245174,1.04130886,109870.0,109860.0,0.002]
[1756720246248,1.04401886,109870.0,109860.0,0.002]
[1756720249433,6.20793423,109870.0,109860.0,0.002]
[1756720249647,6.23529323,109870.0,109860.0,0.002]
[1756720250312,6.23529323,109870.0,109860.0,0.001]
[1756720250494,6.23529323,109870.0,109840.0,0.00087392]
[1756720250495,0.52206645,109850.0,109840.0,0.00087392]
[1756720250648,0.968842,109850.0,109840.0,0.00087392]
[1756720250861,0.970832,109850.0,109840.0,0.00301392]
[1756720251291,0.970832,109850.0,109840.0,0.00599392]
[1756720251717,0.970832,109850.0,109840.0,0.00699392]
[1756720252356,0.970832,109850.0,109840.0,0.00287392]
[1756720253205,0.68421645,109850.0,109840.0,0.00287392]
[1756720253419,0.970832,109850.0,109840.0,0.00287392]
[1756720253714,0.973532,109850.0,109840.0,0.00287392]
[1756720254687,1.01235449,109850.0,109840.0,0.00287392]
[1756720254907,1.01505449,109850.0,109840.0,0.00287392]
[1756720255702,1.01207449,109850.0,109840.0,0.00287392]
[1756720256503,1.01207449,109850.0,109840.0,0.00187392]
[1756720256908,1.01207449,109850.0,109840.0,0.00087392]
[1756720257331,1.01477449,109850.0,109840.0,0.00087392]
[1756720257546,0.72545894,109850.0,109840.0,0.00087392]
[1756720257761,1.01207449,109850.0,109840.0,0.00087392]
[1756720258428,1.01477449,109850.0,109840.0,0.00087392]
[1756720258647,5.87113549,109850.0,109840.0,0.00087392]
[1756720258888,5.89849849,109850.0,109840.0,0.00087392]
[1756720263593,6.33839849,109850.0,109840.0,0.00087392]
[1756720264073,6.17851849,109850.0,109840.0,0.00087392]
[1756720264389,6.33835849,109850.0,109840.0,0.00087392]
[1756720266324,6.73889287,109850.0,109840.0,0.00087392]
[1756720266804,6.74364363,109850.0,109840.0,0.00087392]
[1756720267424,6.74464363,109850.0,109840.0,0.00087392]
[1756720268231,6.17141253,109850.0,109840.0,0.00087392]
[1756720268462,6.74448363,109850.0,109840.0,0.00087392]
[1756720268959,6.01157253,109850.0,109840.0,0.00087392]
[1756720269145,6.74448363,109850.0,109840.0,0.00087392]
[1756720274627,6.17125253,109850.0,109840.0,0.00087392]
[1756720274817,6.74448363,109850.0,109840.0,0.00087392]
[1756720275693,6.30458363,109850.0,109840.0,0.00087392]
[1756720277935,5.73135253,109850.0,109840.0,0.00087392]
[1756720278156,5.72841253,109850.0,109840.0,0.00087392]
[1756720278376,6.30164363,109850.0,109840.0,0.00087392]
[1756720278604,6.30180363,109850.0,109840.0,0.00087392]
[1756720280471,6.30450363,109850.0,109840.0,0.00087392]
[1756720280677,6.30180363,109850.0,109840.0,0.00087392]
[1756720281412,6.30450363,109850.0,109840.0,0.00087392]
[1756720285087,0.52208302,109840.0,109830.0,1e-08]
[1756720285300,6.27397513,109840.0,109830.0,1e-08]
[1756720285503,6.14263403,109840.0,109830.0,1e-08]
[1756720285702,6.14532403,109840.0,109830.0,1e-08]
[1756720286355,6.14897303,109840.0,109830.0,1e-08]
[1756720287995,6.14628303,109840.0,109830.0,1e-08]
[1756720288204,6.14897303,109840.0,109830.0,1e-08]
[1756720288401,6.15097303,109840.0,109830.0,1e-08]
[1756720289040,6.14820303,109840.0,109830.0,1e-08]
[1756720289250,6.14820303,109840.0,109830.0,0.00513001]
[1756720289674,6.24384279,109840.0,109830.0,1e-08]
[1756720290082,6.81707389,109840.0,109830.0,1e-08]
[1756720290286,6.81507389,109840.0,109830.0,1e-08]
[1756720290529,6.37717389,109840.0,109830.0,1e-08]
[1756720291679,6.80178443,109840.0,109830.0,1e-08]
[1756720292124,0.1820996,109830.0,109820.0,1e-08]
[1756720292341,0.52214936,109800.0,109790.0,0.00344]
[1756720292545,0.52214936,109800.0,109790.0,0.00352625]
[1756720292546,5.60799036,109800.0,109790.0,0.00352625]
[1756720292755,5.60799036,109800.0,109790.0,0.00561625]
[1756720292969,5.74928519,109800.0,109790.0,0.00561625]
[1756720293190,6.32449629,109800.0,109790.0,0.00048625]
[1756720294035,6.61111184,109800.0,109790.0,0.00048625]
[1756720294242,6.61586479,109800.0,109790.0,0.00048625]
[1756720294660,6.66008257,109800.0,109790.0,0.00048625]
[1756720294866,6.50060257,109800.0,109790.0,0.00048625]
[1756720295067,6.37067702,109800.0,109790.0,0.00048625]
[1756720296878,6.21127702,109800.0,109790.0,0.00048625]
[1756720297096,6.37055702,109800.0,109790.0,0.00048625]
[1756720297943,6.21127702,109800.0,109790.0,0.00048625]
[1756720298175,6.37047702,109800.0,109790.0,0.00048625]
[1756720300071,6.46342678,109800.0,109790.0,0.00048625]
[1756720300274,6.37047702,109800.0,109790.0,0.00048625]
[1756720300479,5.79724592,109800.0,109790.0,0.00048625]
[1756720300675,6.14447873,109800.0,109790.0,0.00048625]
[1756720300877,6.32662809,109800.0,109790.0,0.00048625]
[1756720302960,6.32642809,109800.0,109790.0,0.00048625]
[1756720306851,6.32614809,109800.0,109790.0,0.00048625]
[1756720307660,6.16742809,109800.0,109790.0,0.00048625]
[1756720307832,6.32614809,109800.0,109790.0,0.00048625]
[1756720311918,6.16742809,109800.0,109790.0,0.00245625]
[1756720312129,6.16742809,109800.0,109790.0,0.00541625]
[1756720312366,6.32578809,109800.0,109790.0,0.00541625]
[1756720313090,6.32578809,109800.0,109790.0,0.00048625]
[1756720315150,5.75255699,109800.0,109790.0,0.00048625]
[1756720315357,6.32578809,109800.0,109790.0,0.00048625]
[1756720317583,6.32578809,109800.0,109790.0,0.00245625]
[1756720317765,6.32578809,109800.0,109790.0,0.00541625]
[1756720318301,6.32578809,109800.0,109790.0,0.00048625]
[1756720318510,5.75255699,109800.0,109790.0,0.00541625]
[1756720318694,6.32578809,109800.0,109790.0,0.00541625]
[1756720319082,6.33578809,109800.0,109790.0,0.00048625]
[1756720319286,6.35283261,109800.0,109790.0,0.00048625]
[1756720319488,5.77960151,109800.0,109790.0,0.00541625]
[1756720319679,6.33578809,109800.0,109790.0,0.00541625]
[1756720320079,6.17544809,109800.0,109790.0,0.00541625]
[1756720320280,6.33356809,109800.0,109790.0,0.00541625]
[1756720320487,5.76033699,109800.0,109790.0,0.00541625]
[1756720320688,6.33554809,109800.0,109790.0,0.00541625]
[1756720320950,6.33554809,109800.0,109790.0,0.00048625]
[1756720321307,0.20310477,109790.0,109780.0,0.00336]
[1756720321516,6.22383688,109790.0,109780.0,0.0004]
[1756720321719,6.22582688,109790.0,109780.0,0.0004]
[1756720321940,6.22852688,109790.0,109780.0,0.0004]
[1756720322134,6.24561441,109790.0,109780.0,0.0004]
[1756720322793,6.24291441,109790.0,109780.0,0.0004]
[1756720323017,5.95430886,109790.0,109780.0,0.00533]
[1756720323313,5.93718133,109790.0,109780.0,0.00633]
[1756720323944,6.22577688,109790.0,109780.0,0.0014]
[1756720324322,6.22777688,109790.0,109780.0,0.00337]
[1756720324554,6.22777688,109790.0,109780.0,0.0014]
[1756720324722,6.2369759,109790.0,109780.0,0.00533]
[1756720325169,6.2379759,109790.0,109780.0,0.00533]
[1756720326014,6.2359959,109790.0,109780.0,0.00533]
[1756720326263,5.81864135,109790.0,109780.0,0.00533]
[1756720326507,5.97668135,109790.0,109780.0,0.00533]
[1756720326976,5.81864135,109790.0,109780.0,0.00533]
[1756720327202,5.98668135,109790.0,109780.0,0.00533]
[1756720328190,5.98866135,109790.0,109780.0,0.00533]
[1756720328603,5.7020558,109790.0,109780.0,0.00533]
[1756720328806,5.98664135,109790.0,109780.0,0.00533]
[1756720332130,6.05866135,109790.0,109780.0,0.00533]
[1756720332623,6.05668135,109790.0,109780.0,0.00533]
[1756720335065,6.05866135,109790.0,109780.0,0.00533]
[1756720335403,6.05668135,109790.0,109780.0,0.00533]
[1756720336379,5.94244252,109790.0,109780.0,0.00533]
[1756720336582,5.78476252,109790.0,109780.0,0.00533]
[1756720336788,5.94244252,109790.0,109780.0,0.00533]
[1756720336994,5.49814697,109790.0,109780.0,0.00533]
[1756720337197,0.56102052,109790.0,109780.0,0.00533]
[1756720337405,0.43212497,109790.0,109780.0,0.00533]
[1756720337613,0.71874052,109790.0,109780.0,0.00533]
[1756720338019,0.27440497,109790.0,109780.0,0.18751254]
[1756720338225,0.43008497,109790.0,109780.0,0.28049255]
[1756720338430,0.71670052,109790.0,109780.0,0.09831001]
[1756720338771,0.71670052,109790.0,109780.0,0.10031001]
[1756720338985,0.71570052,109790.0,109780.0,0.10031001]
[1756720339188,0.71570052,109790.0,109780.0,0.09831001]
[1756720339406,0.71570052,109790.0,109780.0,0.10031001]
[1756720339611,0.71570052,109790.0,109780.0,0.09831001]
[1756720340020,0.71570052,109790.0,109780.0,0.28049255]
[1756720340440,0.01,109790.0,109780.0,0.5671081]
[1756720340634,0.16756,109790.0,109780.0,0.5671081]
[1756720340839,0.01917066,109790.0,109780.0,0.30786155]
[1756720341608,0.01917066,109790.0,109780.0,0.30986155]
[1756720341812,0.01917066,109790.0,109780.0,0.30786155]
[1756720342233,0.01917066,109790.0,109780.0,0.31086155]
[1756720343104,0.01917066,109790.0,109780.0,0.31186155]
[1756720345584,0.48795216,109790.0,109780.0,0.31186155]
[1756720345781,0.48795216,109790.0,109780.0,0.28449255]
[1756720346541,0.30578621,109790.0,109780.0,0.28449255]
[1756720346743,0.01917066,109790.0,109780.0,0.28449255]
[1756720346940,0.01,109790.0,109780.0,0.28449255]
[1756720347594,0.19216595,109790.0,109780.0,0.28449255]
[1756720349031,0.01,109790.0,109780.0,0.28449255]
[1756720350191,0.01925375,109790.0,109780.0,0.28449255]
[1756720352597,0.48803525,109790.0,109780.0,0.10231001]
[1756720352802,0.49001525,109790.0,109780.0,0.10231001]
[1756720353065,0.49001525,109790.0,109780.0,0.09935001]
[1756720353287,0.49001525,109790.0,109780.0,0.10236001]
[1756720353502,0.64531525,109790.0,109780.0,0.28454255]
[1756720354351,0.3586997,109790.0,109780.0,0.28454255]
[1756720354491,0.64531525,109790.0,109780.0,0.28454255]
[1756720355665,0.3586997,109790.0,109780.0,0.28454255]
[1756720355879,0.64729525,109790.0,109780.0,0.09738001]
[1756720356264,0.64729525,109790.0,109780.0,0.10039001]
[1756720356464,0.64729525,109790.0,109780.0,0.10249001]
[1756720356885,0.64729525,109790.0,109780.0,0.09949001]
[1756720358116,0.64729525,109790.0,109780.0,0.09849001]
[1756720358636,0.64729525,109790.0,109780.0,0.10049001]
[1756720359665,0.3586197,109790.0,109780.0,0.28267255]
[1756720359844,0.64523525,109790.0,109780.0,0.10049001]
[1756720360029,0.60292963,109790.0,109780.0,0.10049001]
[1756720360442,0.61204882,109790.0,109780.0,0.10049001]
[1756720360899,0.32543327,109790.0,109780.0,0.10049001]
[1756720361098,0.61204882,109790.0,109780.0,0.10049001]
[1756720361876,0.16623919,109790.0,109780.0,0.28267255]
[1756720362187,0.29573474,109790.0,109780.0,0.28267255]
[1756720362522,0.16619919,109790.0,109780.0,0.28267255]
[1756720363975,0.00911919,109790.0,109780.0,0.28267255]
[1756720364376,0.15696,109790.0,109780.0,0.28267255]
[1756720364602,0.33912595,109790.0,109780.0,0.28267255]
[1756720365013,0.44357555,109790.0,109780.0,0.28267255]
[1756720366120,0.28661555,109790.0,109780.0,0.28267255]
[1756720366315,0.01004726,109800.0,109790.0,0.18216595]
[1756720366569,0.01004726,109800.0,109790.0,0.28253303]
[1756720366773,0.15696726,109800.0,109790.0,0.28025596]
[1756720367404,0.44358281,109800.0,109790.0,0.28025596]
[1756720367784,0.62573217,109800.0,109790.0,0.28025596]
[1756720367986,0.6348809,109800.0,109790.0,0.28025596]
[1756720368398,0.45273154,109800.0,109790.0,0.28025596]
[1756720368595,0.45373154,109800.0,109790.0,0.28025596]
[1756720368982,0.6358809,109800.0,109790.0,0.28025596]
[1756720369588,0.6458809,109800.0,109790.0,0.28025596]
[1756720372343,0.17711599,109800.0,109790.0,0.28025596]
[1756720372556,0.46373154,109800.0,109790.0,0.28025596]
[1756720372932,0.30681154,109800.0,109790.0,0.28025596]
[1756720373136,0.17687599,109800.0,109790.0,0.28025596]
[1756720374411,0.6456409,109800.0,109790.0,0.28025596]
[1756720374869,0.6446409,109800.0,109790.0,0.28025596]
[1756720375054,0.35802535,109800.0,109790.0,0.28025596]
[1756720375256,0.6446409,109800.0,109790.0,0.28025596]
[1756720375453,0.6466209,109800.0,109790.0,0.09398001]
[1756720375661,0.6466209,109800.0,109790.0,0.27614596]
[1756720375860,0.6466209,109800.0,109790.0,0.27814596]
[1756720376064,0.6466209,109800.0,109790.0,0.09917001]
[1756720376417,0.59026919,109800.0,109790.0,0.09917001]
[1756720376613,0.59026919,109800.0,109790.0,0.28133596]
[1756720377258,0.44321555,109800.0,109790.0,0.28340596]
[1756720377490,0.1566,109800.0,109790.0,0.28340596]
[1756720377681,0.44321555,109800.0,109790.0,0.28340596]
[1756720377886,0.16572775,109800.0,109790.0,0.28340596]
[1756720378067,0.4523433,109800.0,109790.0,0.28340596]
[1756720379903,0.16572775,109800.0,109790.0,0.28340596]
[1756720380114,0.4523433,109800.0,109790.0,0.28340596]
[1756720383662,0.2957433,109800.0,109790.0,0.28340596]
[1756720383816,0.4521033,109800.0,109790.0,0.28340596]
[1756720384013,0.16548775,109800.0,109790.0,0.28340596]
[1756720384219,0.4521033,109800.0,109790.0,0.28340596]
[1756720385050,0.2957433,109800.0,109790.0,0.28340596]
[1756720385276,0.4521033,109800.0,109790.0,0.28340596]
[1756720385470,0.63623266,109800.0,109790.0,0.09598001]
[1756720385697,0.63623266,109800.0,109790.0,0.28340596]
[1756720385851,0.63623266,109800.0,109790.0,0.10124001]
[1756720386315,0.63623266,109800.0,109790.0,0.28340596]
[1756720387083,0.34961711,109800.0,109790.0,0.28340596]
[1756720387303,0.63623266,109800.0,109790.0,0.09805001]
[1756720387541,0.63623266,109800.0,109790.0,0.09598001]
[1756720387926,0.34961711,109800.0,109790.0,0.28021596]
[1756720388083,0.63623266,109800.0,109790.0,0.09598001]
[1756720388492,0.63623266,109800.0,109790.0,0.27814596]
[1756720388950,0.34961711,109800.0,109790.0,0.27814596]
[1756720389153,0.63623266,109800.0,109790.0,0.27814596]
[1756720389493,0.63623266,109800.0,109790.0,0.09598001]
[1756720391159,0.92555821,109800.0,109790.0,0.003]
[1756720392898,0.92555821,109800.0,109790.0,0.002]
[1756720393293,0.18216595,109790.0,109780.0,0.0004]
[1756720393497,0.4687815,109790.0,109780.0,0.09338001]
[1756720393829,0.19127711,109800.0,109780.0,0.27763255]
[1756720394029,0.47789266,109800.0,109790.0,0.27614596]
[1756720394234,0.47789266,109800.0,109790.0,0.28040596]
[1756720394432,0.63413266,109800.0,109790.0,0.28040596]
[1756720394641,0.18216595,109790.0,109780.0,0.18258254]
[1756720394842,0.4687815,109790.0,109780.0,0.27875255]
[1756720395072,0.4687815,109790.0,109780.0,0.28082255]
[1756720395620,0.6250215,109790.0,109780.0,0.28082255]
[1756720395827,0.6250215,109790.0,109780.0,0.28282255]
[1756720396512,0.6270015,109790.0,109780.0,0.27856255]
[1756720396713,0.6270015,109790.0,109780.0,0.09638001]
[1756720397270,0.34038595,109790.0,109780.0,0.28063255]
[1756720397486,0.6270015,109790.0,109780.0,0.28063255]
[1756720397701,0.6297115,109790.0,109780.0,0.09638001]
[1756720398020,0.4707615,109790.0,109780.0,0.27856255]
[1756720398246,0.6275615,109790.0,109780.0,0.27856255]
[1756720399427,0.19127711,109800.0,109780.0,0.28382255]
[1756720399627,0.47789266,109800.0,109790.0,0.18535595]
[1756720399835,0.63461266,109800.0,109790.0,0.18742595]
[1756720400038,0.63659266,109800.0,109790.0,0.00526]
[1756720400654,0.63659266,109800.0,109780.0,0.27656255]
[1756720400854,0.4687815,109790.0,109780.0,0.27556255]
[1756720401075,0.4687815,109790.0,109780.0,0.28082255]
[1756720402946,0.4687815,109790.0,109780.0,0.28182255]
[1756720403380,0.4687815,109790.0,109780.0,0.28082255]
[1756720403618,0.4687815,109790.0,109780.0,0.28282255]
[1756720404291,0.4687815,109790.0,109780.0,0.28382255]
[1756720409906,0.4707615,109790.0,109780.0,0.27856255]
[1756720410111,0.4707615,109790.0,109780.0,0.28372255]
[1756720411602,0.18216595,109790.0,109780.0,0.28372255]
[1756720411799,0.4687815,109790.0,109780.0,0.28372255]
[1756720412232,0.4707615,109790.0,109780.0,0.27856255]
[1756720413060,0.4707615,109790.0,109780.0,0.28372255]
[1756720413468,0.4707615,109790.0,109780.0,0.27856255]
[1756720413816,0.18216595,109790.0,109780.0,0.28372255]
[1756720413965,0.4707615,109790.0,109780.0,0.28372255]
[1756720414723,0.4687815,109790.0,109780.0,0.28372255]
[1756720415155,0.4707715,109790.0,109780.0,0.09638001]
[1756720415342,0.4707715,109790.0,109780.0,0.27856255]
[1756720416432,0.4707715,109790.0,109780.0,0.09638001]
[1756720416796,0.18415595,109790.0,109780.0,0.27856255]
[1756720417002,0.4707715,109790.0,109780.0,0.27856255]
[1756720418060,0.4707715,109790.0,109780.0,0.09638001]
[1756720420328,0.4734715,109790.0,109780.0,0.0034]
[1756720420696,6.14248118,109790.0,109780.0,0.0034]
[1756720421101,6.32586318,109790.0,109780.0,0.0034]
[1756720421304,6.25374888,109790.0,109780.0,0.0034]
[1756720421978,6.25374888,109790.0,109780.0,0.0004]
[1756720422292,6.09774888,109790.0,109780.0,0.0004]
[1756720422503,6.25774888,109790.0,109780.0,0.0004]
[1756720422710,6.10174888,109790.0,109780.0,0.0004]
[1756720422883,6.09974888,109790.0,109780.0,0.0004]
[1756720423092,6.25566888,109790.0,109780.0,0.0004]
[1756720423500,6.25766888,109790.0,109780.0,0.0004]
[1756720424325,6.26242229,109790.0,109780.0,0.0004]
[1756720425120,6.10650229,109790.0,109780.0,0.0004]
[1756720425350,6.26242229,109790.0,109780.0,0.0004]
[1756720425628,6.3038444,109790.0,109780.0,0.0004]
[1756720427197,6.1479244,109790.0,109780.0,0.0004]
[1756720427574,6.01718885,109790.0,109780.0,0.0004]
[1756720427786,6.3038044,109790.0,109780.0,0.0004]
[1756720428945,6.01718885,109790.0,109780.0,0.0004]
[1756720430948,6.3038044,109790.0,109780.0,0.0004]
[1756720432367,6.3037244,109790.0,109780.0,0.0004]
[1756720432575,6.1479244,109790.0,109780.0,0.0004]
[1756720432799,6.3037244,109790.0,109780.0,0.0004]
[1756720432917,5.86130885,109790.0,109780.0,0.0004]
[1756720433151,6.01440885,109790.0,109780.0,0.0004]
[1756720433505,6.01710885,109790.0,109780.0,0.0004]
[1756720433803,6.01440885,109790.0,109780.0,0.0004]
[1756720434107,6.01440885,109790.0,109780.0,0.00247]
[1756720434304,6.01440885,109790.0,109780.0,0.00541]
[1756720435482,5.7277933,109790.0,109780.0,0.0004]
[1756720435631,6.01440885,109790.0,109780.0,0.0004]
[1756720435835,6.01710885,109790.0,109780.0,0.0004]
[1756720436241,6.01440885,109790.0,109780.0,0.0004]
[1756720438230,5.85860885,109790.0,109780.0,0.0004]
[1756720438830,6.01440885,109790.0,109780.0,0.0004]
[1756720439414,5.5719933,109790.0,109780.0,0.00247]
[1756720439543,5.5719933,109790.0,109780.0,0.00541]
[1756720439544,5.60713106,109790.0,109780.0,0.00541]
[1756720439744,5.89374661,109790.0,109780.0,0.00541]
[1756720440217,5.89573661,109790.0,109780.0,0.00541]
[1756720441174,0.54158561,109790.0,109780.0,0.00541]
[1756720441543,0.67199361,109790.0,109780.0,0.00541]
[1756720441695,1.01199361,109790.0,109780.0,0.00541]
[1756720442505,0.72338806,109790.0,109780.0,0.00541]
[1756720442714,1.01000361,109790.0,109780.0,0.00541]
[1756720442863,1.01198361,109790.0,109780.0,0.00541]
[1756720443728,1.01000361,109790.0,109780.0,0.00541]
[1756720443929,1.01198361,109790.0,109780.0,0.00541]
[1756720444509,0.72807806,109790.0,109780.0,0.0004]
[1756720444709,1.01198361,109790.0,109780.0,0.0004]
[1756720444910,0.72536806,109790.0,109780.0,0.00541]
[1756720445112,1.01198361,109790.0,109780.0,0.00541]
[1756720445331,1.01198361,109790.0,109780.0,0.0004]
[1756720445747,6.15496016,109790.0,109780.0,0.0004]
[1756720445961,5.86834461,109790.0,109780.0,0.0004]
[1756720446141,5.87105461,109790.0,109780.0,0.0004]
[1756720447823,5.86834461,109790.0,109780.0,0.0004]
[1756720448003,5.89572161,109790.0,109780.0,0.0004]
[1756720448351,5.89843161,109790.0,109780.0,0.0004]
[1756720448563,6.29896599,109790.0,109780.0,0.0004]
[1756720449607,6.29896599,109790.0,109750.0,0.0025]
[1756720449608,0.18221574,109760.0,109750.0,0.0025]
[1756720449818,0.69467129,109760.0,109750.0,0.0025]
[1756720449968,0.69666129,109760.0,109750.0,0.00751]
[1756720450171,0.72404529,109760.0,109750.0,0.00751]
[1756720450797,0.72404529,109760.0,109750.0,0.00851]
[1756720450924,0.72404529,109760.0,109750.0,0.01063919]
[1756720451789,0.72205529,109760.0,109750.0,0.01063919]
[1756720452131,0.72404529,109760.0,109750.0,0.01063919]
[1756720452333,0.72205529,109760.0,109750.0,0.01063919]
[1756720454589,0.56625529,109760.0,109750.0,0.01063919]
[1756720454793,0.76285685,109760.0,109750.0,0.01063919]
[1756720455590,0.76483685,109760.0,109750.0,0.01063919]
[1756720455787,1.10754685,109760.0,109750.0,0.00562919]
[1756720456277,1.10483685,109760.0,109750.0,0.00562919]
[1756720457161,0.94903685,109760.0,109750.0,0.00562919]
[1756720457368,0.6624213,109760.0,109750.0,0.00562919]
[1756720457573,0.8182313,109760.0,109750.0,0.01063919]
[1756720457775,1.10484685,109760.0,109750.0,0.01063919]
[1756720458219,0.94904685,109760.0,109750.0,0.00863919]
[1756720458417,0.94705685,109760.0,109750.0,0.00763919]
[1756720458626,0.94705685,109760.0,109750.0,0.00863919]
[1756720458834,1.07547285,109760.0,109750.0,0.00863919]
[1756720460046,1.07547285,109760.0,109750.0,0.00763919]
[1756720460253,1.07547285,109760.0,109750.0,0.00863919]
[1756720460863,0.91967285,109760.0,109750.0,0.00863919]
[1756720461024,1.07547285,109760.0,109750.0,0.00863919]
[1756720461634,0.91967285,109760.0,109750.0,0.00863919]
[1756720461837,1.07547285,109760.0,109750.0,0.00863919]
[1756720462082,1.07745285,109760.0,109750.0,0.00863919]
[1756720462460,1.07745285,109760.0,109750.0,0.00362919]
[1756720462676,5.93652385,109760.0,109750.0,0.00362919]
[1756720467075,5.94017485,109760.0,109750.0,0.00362919]
[1756720467784,5.78437485,109760.0,109750.0,0.00362919]
[1756720467947,5.94021485,109760.0,109750.0,0.00362919]
[1756720468575,5.89941329,109760.0,109750.0,0.00362919]
[1756720468952,5.89670329,109760.0,109750.0,0.00362919]
[1756720469813,5.61008774,109760.0,109750.0,0.00362919]
[1756720469994,5.89670329,109760.0,109750.0,0.00362919]
[1756720472166,5.89941329,109760.0,109750.0,0.00362919]
[1756720473718,6.29994767,109760.0,109750.0,0.00362919]
[1756720474217,6.73984767,109760.0,109750.0,0.00362919]
[1756720474417,6.73984767,109760.0,109750.0,0.00262919]
[1756720476060,6.74184767,109760.0,109750.0,0.00262919]
[1756720476638,6.73984767,109760.0,109750.0,0.00262919]
[1756720476956,6.74184767,109760.0,109750.0,0.00262919]
[1756720477992,6.78340831,109760.0,109750.0,0.00262919]
[1756720478398,6.78816293,109760.0,109750.0,0.00262919]
[1756720478708,6.79291669,109760.0,109750.0,0.00262919]
[1756720479318,6.63707669,109760.0,109750.0,0.00262919]
[1756720479529,6.79291669,109760.0,109750.0,0.00262919]
[1756720480078,6.63707669,109760.0,109750.0,0.00262919]
[1756720480277,6.79291669,109760.0,109750.0,0.00262919]
[1756720481338,6.44596645,109760.0,109750.0,1e-08]
[1756720482854,6.19517669,109760.0,109750.0,1e-08]
[1756720483063,6.46617669,109760.0,109750.0,1e-08]
[1756720483266,6.62401669,109760.0,109750.0,1e-08]
[1756720483882,6.62201669,109760.0,109750.0,1e-08]
[1756720484261,6.17985114,109760.0,109750.0,1e-08]
[1756720484474,6.62030669,109760.0,109750.0,1e-08]
[1756720484683,6.57030669,109760.0,109750.0,1e-08]
[1756720484894,6.57230669,109760.0,109750.0,1e-08]
[1756720485681,6.66525645,109760.0,109750.0,1e-08]
[1756720485864,6.57230669,109760.0,109750.0,1e-08]
[1756720486064,6.57230669,109760.0,109750.0,0.00319001]
[1756720486266,6.12985114,109760.0,109750.0,0.00319001]
[1756720486482,6.28569114,109760.0,109750.0,0.00528001]
[1756720486642,5.12677612,109760.0,109750.0,0.00528001]
[1756720486861,0.70815605,109760.0,109750.0,0.00528001]
[1756720487084,1.04815605,109760.0,109750.0,0.00528001]
[1756720487316,0.52594031,109760.0,109750.0,0.00528001]
[1756720487544,1.04815605,109760.0,109750.0,0.00528001]